bitfinex/quotes_BTCUSD_20251029
["timestamp","ask_amount","ask_price","bid_price","bid_amount"]
[1761764345273,0.18032481,111000.0,110990.0,0.74102119]
[1761764345474,0.18032481,111000.0,110990.0,0.007]
[1761764345728,0.18032481,111000.0,110990.0,0.73802119]
[1761764345952,0.00014463,111000.0,110990.0,0.73802119]
[1761764346160,0.00014463,111000.0,110990.0,0.8308402]
[1761764346161,0.18032481,111000.0,110990.0,0.8308402]
[1761764346364,0.21637377,111000.0,110990.0,0.09181901]
[1761764346774,0.18021265,110980.0,110970.0,1.07602119]
[1761764346978,0.18021265,110980.0,110970.0,1.1658402]
[1761764347179,0.18020974,110990.0,110970.0,1.1658402]
[1761764347391,0.22076899,110990.0,110980.0,0.8258402]
[1761764347798,0.22538277,111000.0,110980.0,0.8258402]
[1761764348008,0.18019641,110990.0,110980.0,0.08981901]
[1761764348495,0.22538277,111000.0,110980.0,0.73602119]
[1761764348698,0.00014463,111000.0,110990.0,0.73602119]
[1761764348903,0.18132481,111000.0,110990.0,0.8258402]
[1761764349312,0.18132481,111000.0,110990.0,1.1658402]
[1761764349313,0.00014463,111000.0,110990.0,1.1658402]
[1761764350546,0.18032481,111000.0,110990.0,0.42981901]
[1761764350755,0.00014463,111000.0,110990.0,1.1658402]
[1761764350955,0.18032481,111000.0,110990.0,0.42981901]
[1761764351169,0.18032481,111000.0,110990.0,0.34]
[1761764351378,0.18032481,111000.0,110990.0,1.07702119]
[1761764351589,0.00014463,111000.0,110990.0,1.1668402]
[1761764351797,0.18032481,111000.0,110990.0,0.42981901]
[1761764352017,0.18032481,111000.0,110990.0,1.1658402]
[1761764352224,0.21637438,111000.0,110990.0,1.1658402]
[1761764352433,0.21637438,111000.0,110990.0,0.43181901]
[1761764352883,0.21637438,111000.0,110950.0,0.00979687]
[1761764352884,0.18021265,110980.0,110950.0,0.00979687]
[1761764353132,0.18021265,110980.0,110970.0,0.73602119]
[1761764353348,0.00014463,111000.0,110980.0,0.34]
[1761764353571,0.00014463,111000.0,110990.0,1.1658402]
[1761764354309,0.00014463,111000.0,110990.0,3.38221889]
[1761764355254,0.00014463,111000.0,110990.0,3.20202248]
[1761764355489,0.00014463,111000.0,110990.0,0.08981901]
[1761764355733,0.18032481,111000.0,110990.0,0.001]
[1761764355961,0.21637388,111000.0,110990.0,0.001]
[1761764356199,0.21637388,111000.0,110990.0,0.006]
[1761764356433,0.21637388,111000.0,110990.0,0.001]
[1761764356913,0.18019641,110990.0,110980.0,0.73602119]
[1761764357092,0.18923546,110980.0,110970.0,0.73602119]
[1761764357316,0.21985344,110990.0,110970.0,0.8258402]
[1761764357514,0.21637456,111000.0,110980.0,0.73602119]
[1761764357724,0.18032498,111000.0,110990.0,0.73602119]
[1761764358176,0.00014463,111000.0,110990.0,0.8258402]
[1761764358367,0.00900982,110990.0,110950.0,0.57736273]
[1761764358606,0.18019641,110990.0,110980.0,1.07602119]
[1761764358823,0.18019641,110990.0,110980.0,1.1658402]
[1761764359870,0.18920623,110990.0,110950.0,0.0480888]
[1761764360093,0.18021265,110980.0,110970.0,0.73602119]
[1761764360314,0.18021265,110980.0,110960.0,0.8258402]
[1761764360535,0.21715295,110990.0,110970.0,0.8258402]
[1761764360825,0.18021265,110980.0,110970.0,0.8258402]
[1761764361057,0.21815295,110990.0,110970.0,0.08981901]
[1761764361287,0.03795611,110990.0,110970.0,0.8258402]
[1761764361511,0.21815322,110990.0,110970.0,0.8258402]
[1761764361737,0.18119711,110990.0,110980.0,0.001]
[1761764362237,0.18021265,110980.0,110970.0,0.8258402]
[1761764362508,0.18019758,110990.0,110970.0,0.8258402]
[1761764362725,0.18121265,110980.0,110970.0,0.08981901]
[1761764362941,0.18021265,110980.0,110970.0,0.08981901]
[1761764363149,0.18019751,110990.0,110970.0,0.8258402]
[1761764363381,0.001,110990.0,110980.0,0.73602119]
[1761764363626,0.18119641,110990.0,110970.0,0.8258402]
[1761764363859,0.18021265,110980.0,110970.0,0.8258402]
[1761764364068,0.001,110980.0,110970.0,0.8258402]
[1761764364483,0.001,110980.0,110970.0,0.08981901]
[1761764364740,0.001,110980.0,110970.0,0.8258402]
[1761764365912,0.18021265,110980.0,110970.0,0.09081901]
[1761764366148,0.21625374,110980.0,110970.0,0.09081901]
[1761764366398,0.21625374,110980.0,110970.0,0.001]
[1761764366641,0.30607275,110980.0,110970.0,0.001]
[1761764367124,0.18025801,110960.0,110940.0,0.73623973]
[1761764367354,0.18026137,110950.0,110940.0,0.43003755]
[1761764367585,0.21631331,110950.0,110940.0,0.43003755]
[1761764367834,0.18024535,110960.0,110950.0,0.34]
[1761764368316,0.18026137,110950.0,110940.0,0.00121854]
[1761764368854,0.18026137,110950.0,110940.0,0.00021854]
[1761764369931,0.18026137,110950.0,110940.0,0.00221854]
[1761764370133,0.21631204,110950.0,110940.0,0.00221854]
[1761764370878,0.21631204,110950.0,110940.0,0.00321854]
[1761764372124,0.21631204,110950.0,110940.0,0.00326854]
[1761764373587,0.30613105,110950.0,110940.0,0.00326854]
[1761764373804,0.30613105,110950.0,110940.0,1e-08]
[1761764373805,0.68231333,110950.0,110940.0,1e-08]
[1761764374010,0.21647615,110930.0,110920.0,8e-05]
[1761764374410,0.21647615,110930.0,110870.0,0.73602119]
[1761764374411,0.18626354,110880.0,110850.0,0.0004]
[1761764374656,0.18040772,110860.0,110850.0,0.09069953]
[1761764374880,0.18039144,110870.0,110850.0,0.82672072]
[1761764374881,0.18039193,110870.0,110850.0,0.82672072]
[1761764375093,0.18039193,110870.0,110850.0,0.09069953]
[1761764375317,0.18040772,110860.0,110850.0,0.09069953]
[1761764375940,0.03666555,110870.0,110850.0,0.09069953]
[1761764376162,0.18040772,110860.0,110850.0,0.08569953]
[1761764376637,0.2170577,110870.0,110850.0,0.08569953]
[1761764376840,0.18040772,110860.0,110850.0,0.08569953]
[1761764377059,0.22015426,110860.0,110850.0,0.42569953]
[1761764377268,0.22015426,110860.0,110850.0,0.08574953]
[1761764377515,0.03974654,110860.0,110850.0,0.42574953]
[1761764377957,0.18139215,110870.0,110850.0,0.42574953]
[1761764378404,0.18139154,110870.0,110850.0,0.42574953]
[1761764378629,0.18039245,110870.0,110850.0,1.16177072]
[1761764379518,0.002,110860.0,110850.0,1.16177072]
[1761764379776,0.18039245,110870.0,110860.0,0.00861411]
[1761764380014,0.0366656,110870.0,110860.0,0.83620393]
[1761764380235,0.002,110870.0,110860.0,0.83620393]
[1761764380463,0.18039144,110870.0,110860.0,0.83620393]
[1761764380633,0.18037539,110880.0,110860.0,0.83620393]
[1761764380859,0.2173536,110880.0,110870.0,0.08981901]
[1761764381035,0.18037539,110880.0,110870.0,0.08981901]
[1761764381239,0.18035944,110890.0,110880.0,0.34]
[1761764381455,0.18035944,110890.0,110880.0,0.42981901]
[1761764381711,0.03844,110900.0,110880.0,1.1658402]
[1761764381878,0.24156592,110900.0,110880.0,0.42981901]
[1761764382096,0.18035891,110890.0,110870.0,0.73602119]
[1761764382327,0.18039144,110870.0,110850.0,0.73607119]
[1761764382562,0.18039144,110870.0,110860.0,0.08981901]
[1761764383015,0.18040772,110860.0,110850.0,5e-05]
[1761764383234,0.21648764,110860.0,110850.0,0.08986901]
[1761764383449,0.18039144,110870.0,110850.0,0.8258902]
[1761764383670,0.18939423,110880.0,110850.0,0.08986901]
[1761764383957,0.18036315,110890.0,110870.0,0.73602119]
[1761764384206,0.18035891,110890.0,110880.0,0.8258402]
[1761764384436,0.1803374,110940.0,110880.0,0.8258402]
[1761764384437,0.18027355,110960.0,110890.0,0.52035841]
[1761764384660,0.18926975,110980.0,110950.0,0.73602119]
[1761764384882,0.18926145,110960.0,110950.0,0.73602119]
[1761764385123,0.18026137,110950.0,110940.0,1.07602119]
[1761764385555,0.18029387,110930.0,110910.0,0.8258402]
[1761764385778,0.18029387,110930.0,110880.0,0.73602119]
[1761764386005,0.18975653,110950.0,110920.0,0.73602119]
[1761764386006,0.0004821,110950.0,110920.0,0.73602119]
[1761764386224,0.18074347,110950.0,110940.0,0.34]
[1761764386477,0.22477317,110950.0,110940.0,1.07602119]
[1761764386683,0.0445118,110950.0,110940.0,1.07602119]
[1761764386905,0.0004821,110950.0,110940.0,1.1658402]
[1761764387129,0.18074347,110950.0,110940.0,0.34]
[1761764387338,0.18074347,110950.0,110940.0,0.47574537]
[1761764387546,0.18029187,110940.0,110900.0,0.59488488]
[1761764387799,0.03700484,110940.0,110930.0,0.81574537]
[1761764388042,0.18074347,110950.0,110940.0,5e-05]
[1761764388267,0.18074347,110950.0,110940.0,0.90561438]
[1761764388268,0.0004821,110950.0,110940.0,0.90561438]
[1761764390463,0.0004821,110950.0,110940.0,0.90761438]
[1761764390904,0.0004821,110950.0,110940.0,0.42986901]
[1761764391114,0.0004821,110950.0,110940.0,0.90561438]
[1761764391326,0.0004821,110950.0,110940.0,0.90861438]
[1761764392047,0.0004821,110950.0,110940.0,0.90661438]
[1761764392726,0.0004821,110950.0,110940.0,0.90561438]
[1761764392953,0.18074347,110950.0,110940.0,0.90561438]
[1761764393163,0.03658097,110950.0,110940.0,0.90561438]
[1761764393648,0.03658097,110950.0,110940.0,0.90861438]
[1761764393871,0.03658097,110950.0,110940.0,0.90761438]
[1761764394313,0.0004821,110950.0,110940.0,0.90761438]
[1761764394722,0.18074347,110950.0,110940.0,0.90861438]
[1761764394951,0.0004821,110950.0,110940.0,0.90861438]
[1761764395400,0.18074347,110950.0,110940.0,0.81879537]
[1761764395634,0.2168428,110950.0,110940.0,0.34305]
[1761764395860,0.2168428,110950.0,110940.0,0.81879537]
[1761764396076,0.2168428,110950.0,110940.0,0.34305]
[1761764396535,0.2168428,110950.0,110940.0,0.00205]
[1761764396759,0.0004821,110950.0,110940.0,0.47579537]
[1761764396974,0.18074347,110950.0,110940.0,0.48079537]
[1761764397185,0.18074347,110950.0,110940.0,0.57061438]
[1761764397413,0.18074347,110950.0,110940.0,0.56561438]
[1761764397625,0.0004821,110950.0,110940.0,0.56561438]
[1761764397868,0.0014821,110950.0,110940.0,0.90561438]
[1761764398071,0.18074347,110950.0,110940.0,0.90561438]
[1761764398293,0.18074347,110950.0,110940.0,0.42986901]
[1761764398532,0.18074347,110950.0,110940.0,0.43186901]
[1761764398533,0.21684277,110950.0,110940.0,0.43186901]
[1761764398763,0.21684277,110950.0,110940.0,0.47779537]
[1761764399802,0.21684277,110950.0,110940.0,0.47579537]
[1761764400248,0.21684277,110950.0,110940.0,0.00405]
[1761764400486,0.21684277,110950.0,110940.0,0.47679537]
[1761764400710,0.0004821,110950.0,110940.0,0.08986901]
[1761764400955,0.0004821,110950.0,110940.0,2.94179666]
[1761764401182,0.18074347,110950.0,110940.0,0.08986901]
[1761764401409,0.19881782,110950.0,110940.0,5e-05]
[1761764401654,0.19981782,110950.0,110940.0,5e-05]
[1761764402121,0.0014821,110950.0,110940.0,2.90861438]
[1761764402345,0.0014821,110950.0,110940.0,0.90861438]
[1761764403068,0.18174347,110950.0,110940.0,0.90861438]
[1761764403287,0.18174347,110950.0,110940.0,5e-05]
[1761764403528,0.18074347,110950.0,110940.0,5e-05]
[1761764403760,0.21784238,110950.0,110940.0,5e-05]
[1761764403981,0.0014821,110950.0,110940.0,0.90561438]
[1761764404201,0.0004821,110950.0,110940.0,0.90561438]
[1761764404645,0.0014821,110950.0,110940.0,0.42986901]
[1761764404868,0.0004821,110950.0,110940.0,0.90561438]
[1761764405079,0.18074347,110950.0,110940.0,0.90561438]
[1761764405306,0.21684244,110950.0,110940.0,5e-05]
[1761764405931,0.21684244,110950.0,110940.0,0.47579537]
[1761764406129,0.18074347,110950.0,110940.0,0.47579537]
[1761764406339,0.0004821,110950.0,110940.0,0.56561438]
[1761764406549,0.0004821,110950.0,110940.0,0.90561438]
[1761764407002,0.0004821,110950.0,110940.0,0.90761438]
[1761764407240,0.18074347,110950.0,110940.0,0.90761438]
[1761764407440,0.21684244,110950.0,110940.0,0.90761438]
[1761764407649,0.21684244,110950.0,110940.0,0.43186901]
[1761764407860,0.21684244,110950.0,110940.0,0.34205]
[1761764408120,0.21684244,110950.0,110940.0,0.34305]
[1761764408324,0.21684244,110950.0,110940.0,0.34105]
[1761764408540,0.0004821,110950.0,110940.0,3.12207428]
[1761764408965,0.0004821,110950.0,110940.0,3.59781965]
[1761764409168,0.0004821,110950.0,110940.0,3.12207428]
[1761764409615,0.0004821,110950.0,110940.0,2.64632891]
[1761764409826,0.0004821,110950.0,110940.0,3.59781965]
[1761764410437,0.0004821,110950.0,110940.0,3.62281963]
[1761764410861,0.0004821,110950.0,110940.0,3.61324823]
[1761764411067,0.0004821,110950.0,110940.0,3.61624823]
[1761764411276,0.0014821,110950.0,110940.0,3.62224823]
[1761764411401,0.0004821,110950.0,110940.0,3.61624823]
[1761764411602,0.0004821,110950.0,110940.0,3.60324824]
[1761764411811,0.0024821,110950.0,110940.0,3.60324824]
[1761764412017,0.0034821,110950.0,110940.0,3.61324823]
[1761764412227,0.0034821,110950.0,110940.0,3.68144849]
[1761764412623,0.0034821,110950.0,110940.0,3.67344849]
[1761764412828,0.0034821,110950.0,110940.0,3.18770313]
[1761764413062,0.0034821,110950.0,110940.0,3.65344851]
[1761764413300,0.0034821,110950.0,110940.0,3.17770314]
[1761764413512,0.0034821,110950.0,110940.0,2.08981901]
[1761764413725,0.0004821,110950.0,110940.0,2.56556438]
[1761764413936,0.18074347,110950.0,110940.0,0.56556438]
[1761764414142,0.2198427,110950.0,110940.0,0.57356438]
[1761764414348,0.0034821,110950.0,110940.0,0.57356438]
[1761764414596,0.0004821,110950.0,110940.0,0.90556438]
[1761764414808,0.0014821,110950.0,110940.0,2.60174666]
[1761764415015,0.0014821,110950.0,110940.0,0.90656438]
[1761764415222,0.0004821,110950.0,110940.0,1.086842]
[1761764415430,0.0004821,110950.0,110940.0,3.086842]
[1761764415642,0.0004821,110950.0,110940.0,3.12602428]
[1761764416818,0.0004821,110950.0,110940.0,3.12302428]
[1761764417028,0.0004821,110950.0,110940.0,3.12202428]
[1761764417225,0.0004821,110950.0,110940.0,3.12702428]
[1761764417440,0.0004821,110950.0,110940.0,3.60276965]
[1761764417883,0.0004821,110950.0,110940.0,3.60976964]
[1761764418110,0.0004821,110950.0,110940.0,3.61176964]
[1761764418340,0.0014821,110950.0,110940.0,3.62676963]
[1761764418585,0.0014821,110950.0,110940.0,3.62276963]
[1761764419024,0.0014821,110950.0,110940.0,3.63984226]
[1761764420276,0.0014821,110950.0,110940.0,3.62676963]
[1761764420504,0.0002,111010.0,110980.0,0.34901063]
[1761764420725,0.00034469,111010.0,111000.0,0.47574537]
[1761764420949,0.00034469,111010.0,111000.0,0.90556438]
[1761764421205,0.00034469,111010.0,111000.0,3.59767221]
[1761764421455,0.00034469,111010.0,111000.0,3.64535056]
[1761764421679,0.00034469,111010.0,111000.0,3.71388551]
[1761764422128,0.00034469,111010.0,111000.0,3.46517038]
[1761764422393,0.00034469,111010.0,111000.0,3.64535056]
[1761764423080,0.00034469,111010.0,111000.0,3.65535055]
[1761764423562,0.00034469,111010.0,111000.0,3.64535056]
[1761764423788,0.00034469,111010.0,111000.0,3.65635055]
[1761764424015,0.00256224,111040.0,111030.0,0.52013149]
[1761764424230,0.00261044,111040.0,111030.0,3.63562352]
[1761764424455,0.00261044,111040.0,111030.0,2.97974666]
[1761764424753,0.00261044,111040.0,111030.0,3.15987815]
[1761764424986,0.00261044,111040.0,111030.0,2.50400129]
[1761764425207,0.00261044,111040.0,111030.0,3.15987815]
[1761764425441,0.0002,111100.0,111060.0,0.18008283]
[1761764425684,0.00024821,111100.0,111090.0,0.12600129]
[1761764425915,0.00024821,111100.0,111090.0,0.08981901]
[1761764425916,0.18026621,111100.0,111090.0,0.08981901]
[1761764426168,0.18026621,111100.0,111080.0,0.34]
[1761764426421,0.18026784,111100.0,111080.0,0.42981901]
[1761764426642,0.18026784,111100.0,111080.0,0.90556438]
[1761764426884,0.18026769,111100.0,111080.0,0.90556438]
[1761764427110,0.00024821,111100.0,111090.0,0.90556438]
[1761764427333,0.00024821,111100.0,111090.0,0.94174666]
[1761764427805,0.00024821,111100.0,111090.0,0.42981901]
[1761764427806,0.18026621,111100.0,111090.0,0.42981901]
[1761764428488,0.18026621,111100.0,111090.0,0.90556438]
[1761764429031,0.00024821,111100.0,111090.0,0.94174666]
[1761764429256,0.00024821,111100.0,111090.0,2.94174666]
[1761764429467,0.00024821,111100.0,111090.0,1.12178086]
[1761764429689,0.00024821,111100.0,111090.0,0.94174666]
[1761764429905,0.00024821,111100.0,111090.0,2.94174666]
[1761764430122,0.00024821,111100.0,111090.0,3.12178086]
[1761764430540,0.00024821,111100.0,111090.0,3.08559858]
[1761764430751,0.00024821,111100.0,111090.0,2.94174666]
[1761764430965,0.00024821,111100.0,111090.0,2.94379666]
[1761764431177,0.00024821,111100.0,111090.0,3.12383086]
[1761764431379,0.00024821,111100.0,111090.0,3.12183086]
[1761764431585,0.00155689,111100.0,111090.0,3.12183086]
[1761764431792,0.00155689,111100.0,111090.0,2.46905129]
[1761764432000,0.00155689,111100.0,111090.0,2.94479666]
[1761764432204,0.00155689,111100.0,111090.0,0.42986901]
[1761764432421,0.18157489,111100.0,111090.0,0.42986901]
[1761764433549,0.00155689,111100.0,111090.0,0.90561438]
[1761764433776,0.00155689,111100.0,111090.0,0.90761438]
[1761764433963,0.18157489,111100.0,111090.0,0.43186901]
[1761764434197,0.18157489,111100.0,111090.0,0.42986901]
[1761764434605,0.18157489,111100.0,111090.0,0.43086901]
[1761764434822,0.18157489,111100.0,111090.0,0.09086901]
[1761764435056,0.18157489,111100.0,111090.0,0.08986901]
[1761764436251,0.18157489,111100.0,111090.0,0.42986901]
[1761764436461,0.18157489,111100.0,111090.0,0.90561438]
[1761764436672,0.00155689,111100.0,111090.0,0.90561438]
[1761764436876,0.18157489,111100.0,111090.0,0.42986901]
[1761764437082,0.18157489,111100.0,111090.0,0.94860128]
[1761764437255,0.00155689,111100.0,111090.0,0.94860128]
[1761764437664,0.00155689,111100.0,111090.0,3.16481776]
[1761764438587,0.00155689,111100.0,111090.0,3.16581776]
[1761764438946,0.00155689,111100.0,111090.0,3.16481776]
[1761764439154,0.00155689,111100.0,111090.0,3.65056312]
[1761764439414,0.00155689,111100.0,111090.0,3.65256312]
[1761764439574,0.00155689,111100.0,111090.0,3.17681775]
[1761764439988,0.00155689,111100.0,111090.0,3.18681774]
[1761764440164,0.00155689,111100.0,111090.0,3.17681775]
[1761764440576,0.00155689,111100.0,111090.0,3.16681776]
[1761764440853,0.00155689,111100.0,111090.0,3.16481776]
[1761764441232,0.00355689,111100.0,111090.0,3.16481776]
[1761764441622,0.00155689,111100.0,111090.0,3.16481776]
[1761764442005,0.00155689,111100.0,111090.0,3.16781776]
[1761764442212,0.00155689,111100.0,111090.0,2.82781776]
[1761764442451,0.00155689,111100.0,111090.0,3.16481776]
[1761764442894,0.00155689,111100.0,111090.0,3.72842153]
[1761764444192,0.00355689,111100.0,111090.0,3.72842153]
[1761764444399,0.0002,111120.0,111110.0,2.57618406]
[1761764444642,0.00068195,111120.0,111110.0,3.67645641]
[1761764444878,0.00068195,111120.0,111110.0,3.66645642]
[1761764445116,0.00111799,111120.0,111110.0,3.67645641]
[1761764445774,0.00111799,111120.0,111110.0,3.65645643]
[1761764446448,0.00111799,111120.0,111110.0,3.00088381]
[1761764446449,0.00311799,111120.0,111110.0,3.00088381]
[1761764446668,0.00311799,111120.0,111110.0,3.44027235]
[1761764446889,0.00311799,111120.0,111110.0,3.66645642]
[1761764447106,0.00311799,111120.0,111110.0,3.69353842]
[1761764447565,0.0002,111130.0,111120.0,3.05616788]
[1761764447777,0.0002,111130.0,111120.0,3.42214941]
[1761764448467,0.00550069,111190.0,111180.0,0.17988846]
[1761764448717,0.0056453,111190.0,111180.0,3.37906537]
[1761764448977,0.0056453,111190.0,111180.0,3.41022796]
[1761764449234,0.0056453,111190.0,111180.0,3.42724371]
[1761764449447,0.0056453,111190.0,111180.0,3.40022797]
[1761764450125,0.0056453,111190.0,111180.0,3.46904989]
[1761764450815,0.0056453,111190.0,111180.0,3.50576051]
[1761764451240,0.16582287,111240.0,111200.0,0.1798424]
[1761764451496,0.18027698,111240.0,111230.0,1.07317562]
[1761764451706,0.18027698,111240.0,111230.0,1.16299463]
[1761764451916,0.18027698,111240.0,111230.0,0.42981901]
[1761764452776,0.18027698,111240.0,111230.0,0.09181901]
[1761764452989,0.18027698,111240.0,111230.0,0.11303161]
[1761764453200,0.18027698,111240.0,111230.0,0.08986901]
[1761764453621,0.18289013,111240.0,111230.0,0.08986901]
[1761764456388,0.18289013,111240.0,111230.0,5e-05]
[1761764456626,0.31042914,111240.0,111230.0,5e-05]
[1761764456865,0.69944965,111240.0,111230.0,5e-05]
[1761764457074,0.69944965,111240.0,111140.0,0.19986204]
[1761764457075,0.1888659,111190.0,111170.0,1.07317562]
[1761764457286,0.1888659,111190.0,111180.0,0.08981901]
[1761764457494,0.1888659,111190.0,111180.0,0.42981901]
[1761764457929,0.19039092,111190.0,111180.0,0.42981901]
[1761764458143,0.19039092,111190.0,111180.0,1.16299463]
[1761764458480,0.19039092,111190.0,111180.0,0.42981901]
[1761764458692,0.00152502,111190.0,111180.0,0.64588975]
[1761764458900,0.00152502,111190.0,111180.0,1.20117691]
[1761764459291,0.00152502,111190.0,111180.0,3.38106537]
[1761764459540,0.00152502,111190.0,111180.0,3.37906537]
[1761764459751,0.00152502,111190.0,111180.0,3.38006537]
[1761764460174,0.00152502,111190.0,111180.0,3.44821958]
[1761764460814,0.00152502,111190.0,111180.0,3.26833112]
[1761764461025,0.00152502,111190.0,111180.0,3.20017691]
[1761764461236,0.00152502,111190.0,111180.0,0.08981901]
[1761764461458,0.18139731,111190.0,111180.0,0.82699463]
[1761764461673,0.18139731,111190.0,111180.0,0.43381901]
[1761764461887,0.18139731,111190.0,111180.0,0.09381901]
[1761764462103,0.18139731,111190.0,111180.0,0.42981901]
[1761764462315,0.17990465,111170.0,111160.0,0.03042625]
[1761764462534,0.17990465,111170.0,111160.0,0.12038987]
[1761764462756,0.18099415,111170.0,111160.0,0.03057086]
[1761764462940,0.22084784,111170.0,111160.0,0.03057086]
[1761764463180,0.31066685,111170.0,111160.0,0.00191068]
[1761764463400,0.31066685,111170.0,111110.0,5e-05]
[1761764463401,0.1799856,111120.0,111110.0,5e-05]
[1761764464074,0.1799856,111120.0,111110.0,0.08986901]
[1761764464312,0.1799856,111120.0,111110.0,5e-05]
[1761764464983,0.1799856,111120.0,111110.0,0.08986901]
[1761764465200,0.18896706,111140.0,111110.0,0.82304463]
[1761764465413,0.00014431,111140.0,111120.0,0.82299463]
[1761764465627,0.00014431,111140.0,111130.0,1.07317562]
[1761764465855,0.00014431,111140.0,111130.0,0.42981901]
[1761764466071,0.18009752,111140.0,111130.0,0.42981901]
[1761764466507,0.1799856,111120.0,111110.0,5e-05]
[1761764466717,0.1799856,111120.0,111110.0,0.42986901]
[1761764467158,0.17998321,111130.0,111110.0,1.16304463]
[1761764467378,0.17998321,111130.0,111120.0,0.82299463]
[1761764467595,0.1799856,111120.0,111110.0,5e-05]
[1761764469783,0.26980461,111120.0,111110.0,5e-05]
[1761764470001,0.520018,111100.0,111090.0,1e-08]
[1761764470220,0.64743701,111100.0,111090.0,1e-08]
[1761764470439,0.18009905,111050.0,111040.0,2.0]
[1761764470663,0.18009905,111050.0,111040.0,0.08981901]
[1761764471313,0.18009905,111050.0,111040.0,0.43030096]
[1761764471531,0.18008353,111060.0,111040.0,0.13333606]
[1761764471742,0.18008353,111060.0,111050.0,0.08981901]
[1761764472399,0.18909893,111070.0,111050.0,0.08981901]
[1761764472616,0.18008283,111060.0,111050.0,0.42981901]
[1761764472834,0.18009905,111050.0,111040.0,0.01348195]
[1761764473283,0.18009905,111050.0,111040.0,0.00148195]
[1761764474136,0.18009905,111050.0,111000.0,0.52918835]
[1761764474137,0.18013521,111030.0,111010.0,0.18826462]
[1761764474352,0.18013521,111030.0,111020.0,0.42981901]
[1761764474608,0.001,111050.0,111020.0,0.42981901]
[1761764474824,0.001,111050.0,111040.0,2.0]
[1761764475038,0.001,111050.0,111040.0,0.42981901]
[1761764475252,0.18109905,111050.0,111040.0,0.42981901]
[1761764475465,0.001,111050.0,111040.0,0.42981901]
[1761764475695,0.18909978,111070.0,111040.0,0.42981901]
[1761764475907,0.18009905,111050.0,111040.0,0.42981901]
[1761764476122,0.18009905,111050.0,111010.0,4.821e-05]
[1761764476123,0.18013149,111030.0,111010.0,0.01604821]
[1761764476357,0.18915129,111040.0,111020.0,0.08981901]
[1761764476570,0.18013149,111030.0,111020.0,0.42981901]
[1761764477229,0.18014772,111020.0,111010.0,4.821e-05]
[1761764477449,0.18014772,111020.0,111010.0,0.01604821]
[1761764478770,0.18014772,111020.0,111010.0,4.821e-05]
[1761764478978,0.18014772,111020.0,111010.0,9.821e-05]
[1761764479406,0.18014772,111020.0,111010.0,0.08991722]
[1761764479593,0.18915129,111040.0,111010.0,0.09890894]
[1761764479877,0.18915129,111040.0,111010.0,0.08991722]
[1761764479878,0.18014772,111020.0,111010.0,0.08991722]
[1761764480112,0.18114772,111020.0,111010.0,0.00909821]
[1761764480782,0.001,111020.0,111010.0,0.27908116]
[1761764481010,0.001,111020.0,111010.0,2.09891722]
[1761764481231,0.001,111020.0,111010.0,0.31526344]
[1761764481452,0.001,111020.0,111010.0,2.4750995]
[1761764481667,0.001,111020.0,111010.0,0.4750995]
[1761764481878,0.001,111020.0,111010.0,0.65526344]
[1761764482139,0.001,111020.0,111010.0,2.4750995]
[1761764482348,0.18013196,111030.0,111020.0,0.34]
[1761764482567,0.1891325,111050.0,111020.0,0.64614786]
[1761764482790,0.18011527,111040.0,111030.0,2.08981901]
[1761764483005,0.18911697,111060.0,111030.0,0.08981901]
[1761764483223,0.18011527,111040.0,111030.0,0.08981901]
[1761764483663,0.18009992,111050.0,111030.0,0.08981901]
[1761764483900,0.18011527,111040.0,111030.0,0.08981901]
[1761764484115,0.18111527,111040.0,111030.0,0.09981901]
[1761764484331,0.001,111040.0,111030.0,0.47600129]
[1761764484577,0.18111527,111040.0,111030.0,0.47600129]
[1761764485020,0.18111527,111040.0,111030.0,0.43981901]
[1761764485236,0.001,111040.0,111030.0,0.43981901]
[1761764485461,0.18111527,111040.0,111030.0,0.47600129]
[1761764485676,0.18011527,111040.0,111030.0,0.42981901]
[1761764485897,0.21767205,111070.0,111040.0,0.55629613]
[1761764485898,0.18911538,111070.0,111040.0,0.55629613]
[1761764486107,0.18008316,111060.0,111050.0,0.08981901]
[1761764486324,0.18008283,111060.0,111050.0,0.08981901]
[1761764487171,0.180067,111070.0,111050.0,0.08981901]
[1761764487382,0.18008283,111060.0,111050.0,0.08986722]
[1761764488030,0.18008283,111060.0,111050.0,4.821e-05]
[1761764488245,0.21609781,111060.0,111050.0,4.821e-05]
[1761764488681,0.25361781,111060.0,111050.0,4.821e-05]
[1761764488904,0.21760283,111060.0,111050.0,4.821e-05]
[1761764489127,0.21760283,111060.0,111050.0,0.00504821]
[1761764489346,0.21760283,111060.0,111050.0,4.821e-05]
[1761764489841,0.18913398,111080.0,111060.0,0.34]
[1761764490106,0.18006683,111070.0,111060.0,0.42981901]
[1761764490327,0.18913398,111080.0,111060.0,0.60989936]
[1761764490532,0.18913398,111080.0,111070.0,0.08981901]
[1761764490759,0.18913291,111090.0,111070.0,0.08181901]
[1761764490982,0.1890798,111110.0,111080.0,0.52004559]
[1761764491200,0.18002306,111100.0,111090.0,2.0]
[1761764491414,0.180018,111100.0,111090.0,2.08981901]
[1761764491635,0.1890798,111110.0,111100.0,2.0]
[1761764491864,0.1890798,111110.0,111100.0,0.08981901]
[1761764492386,0.18956115,111110.0,111100.0,0.08981901]
[1761764492635,0.00048135,111110.0,111100.0,0.08981901]
[1761764492843,0.18048315,111110.0,111100.0,0.08981901]
[1761764493302,0.00048135,111110.0,111100.0,0.13690091]
[1761764493507,0.00048135,111110.0,111100.0,0.08981901]
[1761764493508,0.18048315,111110.0,111100.0,0.08981901]
[1761764493946,0.00048135,111110.0,111100.0,0.09681901]
[1761764494172,0.18048315,111110.0,111100.0,0.09681901]
[1761764494668,0.00048135,111110.0,111100.0,0.09681901]
[1761764494846,0.18048315,111110.0,111100.0,0.09681901]
[1761764495060,0.18048315,111110.0,111100.0,0.09686901]
[1761764495293,0.18048315,111110.0,111100.0,0.09786901]
[1761764495513,0.18048315,111110.0,111100.0,0.09086901]
[1761764495728,0.18048315,111110.0,111100.0,0.08986901]
[1761764495965,0.18048315,111110.0,111100.0,0.09386901]
[1761764496619,0.18048315,111110.0,111100.0,0.08986901]
[1761764496834,0.18048315,111110.0,111100.0,5e-05]
[1761764497044,0.18048315,111110.0,111100.0,0.00205]
[1761764497506,0.18008777,111060.0,111050.0,0.00938263]
[1761764497726,0.18008777,111060.0,111050.0,0.43920164]
[1761764497938,0.18008777,111060.0,111050.0,0.47374417]
[1761764498155,0.18008777,111060.0,111050.0,0.08981901]
[1761764498871,0.18908123,111080.0,111050.0,0.43030036]
[1761764499101,0.18908123,111080.0,111060.0,0.08981901]
[1761764499342,0.18006662,111070.0,111060.0,0.08981901]
[1761764499972,0.18905332,111080.0,111060.0,0.08981901]
[1761764500184,0.18006662,111070.0,111060.0,0.08981901]
[1761764500837,0.18006662,111070.0,111050.0,0.00848135]
[1761764500838,0.18008283,111060.0,111050.0,0.00848135]
[1761764501921,0.18008283,111060.0,111050.0,0.09130036]
[1761764502167,0.18006662,111070.0,111050.0,0.09030036]
[1761764502404,0.18006662,111070.0,111060.0,0.09781901]